fUSD/lending_fUSD_20241118
["ID","MTS","AMOUNT","RATE_DAILY","PERIOD"]
[342481758,1731919885003,-500.0,9.896e-05,2]
[342481759,1731919885012,-500.0,9.896e-05,2]
[342481760,1731919885021,-500.0,9.896e-05,2]
[342481761,1731919885030,-500.0,9.896e-05,2]
[342481762,1731919885040,-500.0,9.896e-05,2]
[342481763,1731919885049,-500.0,9.896e-05,2]
[342481764,1731919885060,-500.0,9.896e-05,2]
[342481765,1731919885069,-641.35039951,9.896e-05,2]
[342481766,1731919885078,-500.0,9.896e-05,2]
[342481767,1731919885087,-500.0,9.896e-05,2]
[342481768,1731919885096,-641.3,9.896e-05,2]
[342481769,1731919885105,-641.3,9.896e-05,2]
[342481770,1731919885185,-641.3,9.896e-05,2]
[342481771,1731919885194,-641.3,9.896e-05,2]
[342481772,1731919885203,-641.3,9.896e-05,2]
[342481773,1731919885212,-641.3,9.896e-05,2]
[342481774,1731919885222,-641.3,9.896e-05,2]
[342481775,1731919885231,-641.3,9.896e-05,2]
[342481776,1731919885241,-641.3,9.896e-05,2]
[342481777,1731919885250,-641.3,9.896e-05,2]
[342481778,1731919885259,-641.42841701,9.896e-05,2]
[342481779,1731919885270,-680.46,9.896e-05,2]
[342481780,1731919885280,-680.46,9.896e-05,2]
[342481781,1731919885290,-680.46,9.896e-05,2]
[342481782,1731919885299,-680.46,9.896e-05,2]
[342481783,1731919885309,-680.46,9.896e-05,2]
[342481784,1731919885320,-680.46,9.896e-05,2]
[342481785,1731919885330,-680.46,9.896e-05,2]
[342481786,1731919885339,-680.46,9.896e-05,2]
[342481787,1731919885349,-680.46,9.896e-05,2]
[342481788,1731919885358,-680.46,9.896e-05,2]
[342481789,1731919885368,-680.61021051,9.896e-05,2]
[342481790,1731919885377,-500.0,9.896e-05,2]
[342481791,1731919885387,-500.0,9.896e-05,2]
[342481792,1731919885399,-500.0,9.896e-05,2]
[342481793,1731919885409,-500.0,9.896e-05,2]
[342481794,1731919885418,-500.0,9.896e-05,2]
[342481795,1731919885427,-500.0,9.896e-05,2]
[342481796,1731919885436,-500.0,9.896e-05,2]
[342481797,1731919885445,-500.0,9.896e-05,2]
[342481798,1731919885454,-217.6122619,9.896e-05,2]
[342481799,1731919885462,-537.16870417,9.896e-05,2]
[342481800,1731919885471,-501.76403403,9.896e-05,2]
[342481801,1731919885480,-762.93,9.896e-05,2]
[342481802,1731919885489,-762.93,9.896e-05,2]
[342481803,1731919885498,-762.93,9.896e-05,2]
[342481804,1731919885507,-762.93,9.896e-05,2]
[342481805,1731919885516,-762.93,9.896e-05,2]
[342481806,1731919885525,-762.93,9.896e-05,2]
[342481807,1731919885534,-762.93,9.896e-05,2]
[342481808,1731919885543,-762.93,9.896e-05,2]
[342481809,1731919885552,-762.93,9.896e-05,2]
[342481810,1731919885561,-762.93,9.896e-05,2]
[342481811,1731919885569,-763.11410549,9.896e-05,2]
[342481812,1731919885579,-500.0,9.896e-05,2]
[342481813,1731919885588,-502.34921588,9.896e-05,2]
[342481814,1731919885597,-500.0,9.896e-05,2]
[342481815,1731919885605,-460.7986262,9.896e-05,2]
[342481816,1731919885614,-500.0,9.896e-05,2]
[342481817,1731919885623,-500.0,9.896e-05,2]
[342481818,1731919885633,-500.0,9.896e-05,2]
[342481819,1731919885643,-505.27,9.896e-05,2]
[342481820,1731919885652,-505.27,9.896e-05,2]
[342481821,1731919885661,-505.27,9.896e-05,2]
[342481822,1731919885670,-505.27,9.896e-05,2]
[342481823,1731919885679,-505.27,9.896e-05,2]
[342481824,1731919885688,-500.0,9.896e-05,2]
[342481825,1731919885697,-505.27,9.896e-05,2]
[342481826,1731919885706,-500.0,9.896e-05,2]
[342481827,1731919885716,-505.27,9.896e-05,2]
[342481828,1731919885725,-508.37077953,9.896e-05,2]
[342481829,1731919885735,-505.27,9.896e-05,2]
[342481830,1731919885746,-505.27,9.896e-05,2]
[342481831,1731919885758,-505.27,9.896e-05,2]
[342481832,1731919885770,-505.39,9.896e-05,2]
[342481833,1731919885779,-653.98,9.896e-05,2]
[342481834,1731919885788,-573.52699931,9.896e-05,2]
[342481835,1731919885809,-80.45300069,9.896e-05,2]
[342481836,1731919885818,-500.0,9.896e-05,2]
[342481837,1731919885827,-47.14113809,9.896e-05,2]
[342481838,1731919885839,-606.83886191,9.896e-05,2]
[342481839,1731919885848,-500.0,9.896e-05,2]
[342481840,1731919885857,-496.6180497,9.896e-05,2]
[342481841,1731919885868,-3.3819503,9.896e-05,2]
[342481842,1731919885877,-500.0,9.896e-05,2]
[342481843,1731919885886,-164.28112511,9.896e-05,2]
[342481844,1731919885896,-500.0,9.896e-05,2]
[342481845,1731919885905,-500.0,9.896e-05,2]
[342481846,1731919885914,-300.73790731,9.896e-05,2]
[342481847,1731919885926,-199.26209269,9.896e-05,2]
[342481848,1731919885936,-500.0,9.896e-05,2]
[342481849,1731919885945,-323.76586849,9.896e-05,2]
[342481850,1731919885970,-543.39,9.895e-05,2]
[342481851,1731919885979,-176.23413151,9.896e-05,2]
[342481852,1731919885988,-500.0,9.896e-05,2]
[342481853,1731919885997,-500.0,9.896e-05,2]
[342481854,1731919886006,-500.0,9.896e-05,2]
[342481855,1731919886016,-299.74184712,9.896e-05,2]
[342481856,1731919886461,-500.0,9.863e-05,2]
[342481857,1731919886470,-336.98839582,9.893e-05,2]
[342481858,1731919886479,-500.0,9.894e-05,2]
[342481859,1731919886489,-543.39,9.895e-05,2]
[342481860,1731919886498,-543.39,9.895e-05,2]
[342481861,1731919886507,-543.39,9.895e-05,2]
[342481862,1731919886517,-543.39,9.895e-05,2]
[342481863,1731919886526,-543.39,9.895e-05,2]
[342481864,1731919886536,-200.25815288,9.896e-05,2]
[342481865,1731919886546,-500.0,9.896e-05,2]
[342481866,1731919886555,-635.43120886,9.896e-05,2]
[342481867,1731919886564,-199.52598506,9.896e-05,2]
[342481868,1731919886573,-500.0,9.896e-05,2]
[342481869,1731919886582,-500.0,9.896e-05,2]
[342481870,1731919886593,-500.0,9.896e-05,2]
[342481871,1731919886602,-500.0,9.896e-05,2]
[342481872,1731919886611,-500.0,9.896e-05,2]
[342481873,1731919886619,-500.0,9.896e-05,2]
[342481874,1731919886629,-582.64276015,9.896e-05,2]
[342481875,1731919886638,-500.0,9.896e-05,2]
[342481876,1731919886649,-500.0,9.896e-05,2]
[342481877,1731919886658,-500.0,9.896e-05,2]
[342481878,1731919886667,-500.0,9.896e-05,2]
[342481879,1731919886676,-500.0,9.896e-05,2]
[342481880,1731919886685,-500.0,9.896e-05,2]
[342481881,1731919886693,-500.0,9.896e-05,2]
[342481882,1731919886702,-282.63867742,9.896e-05,2]
[342481883,1731919886715,-218.27174281,9.896e-05,2]
[342481884,1731919886723,-500.0,9.896e-05,2]
[342481885,1731919886732,-148.70980965,9.896e-05,2]
[342481886,1731919886744,-351.29019035,9.896e-05,2]
[342481887,1731919886752,-222.65321195,9.896e-05,2]
[342481888,1731919886762,-500.0,9.896e-05,2]
[342481889,1731919886771,-500.0,9.896e-05,2]
[342481890,1731919886779,-500.0,9.896e-05,2]
[342481891,1731919886788,-500.0,9.896e-05,2]
[342481892,1731919886798,-500.0,9.896e-05,2]
[342481893,1731919886807,-500.0,9.896e-05,2]
[342481894,1731919886816,-449.39417116,9.896e-05,2]
[342481895,1731919886857,-500.0,9.894e-05,2]
[342481896,1731919886866,-50.60582884,9.896e-05,2]
[342481897,1731919886875,-500.0,9.896e-05,2]
[342481898,1731919886884,-500.0,9.896e-05,2]
[342481899,1731919886894,-500.0,9.896e-05,2]
[342481900,1731919886905,-500.0,9.896e-05,2]
[342481901,1731919886914,-500.0,9.896e-05,2]
[342481902,1731919886923,-503.06159771,9.896e-05,2]
[342481903,1731919886932,-500.0,9.896e-05,2]
[342481904,1731919886941,-500.0,9.896e-05,2]
[342481905,1731919886951,-500.0,9.896e-05,2]
[342481906,1731919886959,-349.45976616,9.896e-05,2]
[342481907,1731919886972,-150.54023384,9.896e-05,2]
[342481908,1731919886981,-500.0,9.896e-05,2]
[342481909,1731919886989,-501.89188641,9.896e-05,2]
[342481910,1731919886999,-500.0,9.896e-05,2]
[342481911,1731919887008,-382.32543529,9.896e-05,2]
[342481912,1731919887017,-500.0,9.896e-05,2]
[342481913,1731919887026,-500.0,9.896e-05,2]
[342481914,1731919887034,-150.31574446,9.896e-05,2]
[342481916,1731920453136,1706.42,8.219e-05,2]
[342481917,1731920703184,424.77,9.799e-05,4]
[342483520,1731921034780,-165.78,8.769e-05,2]
[342483521,1731921034789,-1000.0,8.813e-05,2]
[342483522,1731921034798,-250.0,8.84e-05,2]
[342483523,1731921034807,-8004.7931862,8.877e-05,2]
[342483524,1731921034818,-13776.478936,8.877e-05,2]
[342483525,1731921034833,-2118.7278778,8.877e-05,2]
[342483526,1731921034843,-552.05,8.914e-05,2]
[342483527,1731921034852,-269.21,8.937e-05,2]
[342483528,1731921034862,-164.77,8.944e-05,2]
[342483529,1731921034871,-433.05,9.041e-05,2]
[342483530,1731921034881,-763.91,9.041e-05,2]
[342483531,1731921034890,-433.05,9.041e-05,2]
[342483532,1731921034899,-763.91,9.041e-05,2]
[342483533,1731921034908,-433.05,9.041e-05,2]
[342483534,1731921034917,-760.57,9.041e-05,2]
[342483535,1731921034926,-433.05,9.041e-05,2]
[342483536,1731921034938,-431.42,9.041e-05,2]
[342483537,1731921034947,-167.41,9.146e-05,2]
[342483538,1731921034956,-150.0,9.149e-05,2]
[342483539,1731921034965,-433.05,9.15e-05,2]
[342483540,1731921034974,-763.91,9.15e-05,2]
[342483541,1731921034983,-763.91,9.15e-05,2]
[342483542,1731921034992,-433.05,9.15e-05,2]
[342483543,1731921035001,-150.0,9.178e-05,2]
[342483544,1731921035010,-150.0,9.178e-05,2]
[342483545,1731921035020,-304.28,9.178e-05,2]
[342483546,1731921035028,-1936.64,9.178e-05,2]
[342483547,1731921035037,-150.0,9.178e-05,2]
[342483548,1731921035047,-220.49,9.178e-05,2]
[342483549,1731921035057,-362.43,9.178e-05,2]
[342483550,1731921035067,-150.39,9.178e-05,2]
[342483552,1731921035077,-150.0,9.178e-05,2]
[342483553,1731921035086,-1936.64,9.178e-05,2]
[342483555,1731921035096,-150.0,9.178e-05,2]
[342483556,1731921035104,-150.0,9.178e-05,2]
[342483557,1731921035114,-362.49,9.178e-05,2]
[342483558,1731921035123,-150.0,9.178e-05,2]
[342483559,1731921035132,-150.0,9.178e-05,2]
[342483560,1731921035141,-150.0,9.178e-05,2]
[342483561,1731921035151,-150.0,9.178e-05,2]
[342483562,1731921035160,-362.49,9.178e-05,2]
[342483563,1731921035169,-150.0,9.178e-05,2]
[342483564,1731921035179,-150.0,9.178e-05,2]
[342483565,1731921035191,-362.49,9.178e-05,2]
[342483566,1731921035201,-150.0,9.178e-05,2]
[342483567,1731921035210,-150.0,9.178e-05,2]
[342483568,1731921035219,-150.0,9.178e-05,2]
[342483569,1731921035229,-362.49,9.178e-05,2]
[342483570,1731921035239,-150.0,9.178e-05,2]
[342483571,1731921035248,-150.0,9.178e-05,2]
[342483572,1731921035257,-150.0,9.178e-05,2]
[342483573,1731921035266,-362.49,9.178e-05,2]
[342483574,1731921035275,-362.49,9.178e-05,2]
[342483575,1731921035285,-150.0,9.178e-05,2]
[342483576,1731921035294,-150.0,9.178e-05,2]
[342483577,1731921035304,-150.0,9.178e-05,2]
[342483578,1731921035313,-150.0,9.178e-05,2]
[342483579,1731921035323,-362.49,9.178e-05,2]
[342483580,1731921035332,-150.0,9.178e-05,2]
[342483581,1731921035341,-150.0,9.178e-05,2]
[342483582,1731921035350,-362.49,9.178e-05,2]
[342483583,1731921035359,-1881.0,9.5e-05,2]
[342483584,1731921035368,-13524.342,9.595e-05,2]
[342483585,1731921035377,-200.0,9.6e-05,2]
[342483586,1731921035387,-1000.0,9.6e-05,2]
[342483587,1731921035396,-30259.04,9.67e-05,2]
[342483588,1731921035405,-150.99,9.67e-05,2]
[342483589,1731921035414,-646.12,9.67e-05,2]
[342483590,1731921035423,-12519.81664361,9.693e-05,2]
[342483591,1731921035433,-3073.0795,9.695e-05,2]
[342483592,1731921035443,-11113.0675,9.695e-05,2]
[342483593,1731921035452,-1000.0,9.763e-05,2]
[342483594,1731921035461,-4700.3281,9.796e-05,2]
[342483595,1731921035470,-500.0,9.796e-05,2]
[342483596,1731921035480,-1000.0,9.796e-05,2]
[342483597,1731921035489,-1403.0,9.8e-05,2]
[342483598,1731921035499,-560.0,9.811e-05,2]
[342483599,1731921035508,-1926.0,9.811e-05,2]
[342483600,1731921035517,-1259.0,9.811e-05,2]
[342483601,1731921035527,-974.99073188,9.811e-05,2]
[342483602,1731921035543,-2772.00926812,9.811e-05,2]
[342483603,1731921035552,-814.0,9.811e-05,2]
[342483604,1731921035562,-3492.0,9.811e-05,2]
[342483605,1731921035571,-5676.333,9.811e-05,2]
[342483606,1731921035580,-150.0,9.811e-05,2]
[342483607,1731921035590,-951.803,9.811e-05,2]
[342483608,1731921035599,-583.84,9.811e-05,2]
[342483609,1731921035608,-500.0,9.863e-05,2]
[342483610,1731921035618,-500.0,9.863e-05,2]
[342483611,1731921035627,-500.0,9.863e-05,2]
[342483612,1731921035636,-500.0,9.863e-05,2]
[342483613,1731921035646,-514.58090538,9.863e-05,2]
[342483614,1731921035657,-501.60479331,9.863e-05,2]
[342483615,1731921035667,-500.0,9.863e-05,2]
[342483616,1731921035683,-509.7665916,9.863e-05,2]
[342483617,1731921035692,-500.0,9.863e-05,2]
[342483618,1731921035702,-500.0,9.863e-05,2]
[342483619,1731921035711,-495.81258308,9.863e-05,2]
[342483620,1731921035722,-501.00248398,9.863e-05,2]
[342483621,1731921035731,-501.28156774,9.863e-05,2]
[342483622,1731921035740,-500.0,9.863e-05,2]
[342483623,1731921035751,-500.0,9.863e-05,2]
[342483624,1731921035760,-500.0,9.863e-05,2]
[342483625,1731921035769,-500.0,9.863e-05,2]
[342483626,1731921035779,-500.0,9.863e-05,2]
[342483627,1731921035789,-500.0,9.863e-05,2]
[342483628,1731921035799,-500.0,9.863e-05,2]
[342483629,1731921035809,-500.0,9.863e-05,2]
[342483630,1731921035818,-374.33165643,9.863e-05,2]
[342483632,1731921035827,-382.42601907,9.863e-05,2]
[342483634,1731921035837,-500.0,9.863e-05,2]
[342483636,1731921035846,-500.0,9.863e-05,2]
[342483638,1731921035855,-500.0,9.863e-05,2]
[342483639,1731921035864,-500.0,9.863e-05,2]
[342483641,1731921035873,-500.0,9.863e-05,2]
[342483643,1731921035882,-500.0,9.863e-05,2]
[342483645,1731921035891,-500.0,9.863e-05,2]
[342483647,1731921035900,-500.0,9.863e-05,2]
[342483648,1731921035909,-179.38259701,9.863e-05,2]
[342483649,1731921035918,-501.60236078,9.863e-05,2]
[342483650,1731921035927,-500.0,9.863e-05,2]
[342483651,1731921035943,-500.0,9.863e-05,2]
[342483652,1731921035952,-315.17210502,9.863e-05,2]
[342483653,1731921035962,-500.0,9.863e-05,2]
[342483654,1731921035971,-500.0,9.863e-05,2]
[342483655,1731921035982,-500.0,9.863e-05,2]
[342483656,1731921035992,-500.0,9.863e-05,2]
[342483657,1731921036001,-500.0,9.863e-05,2]
[342483658,1731921036010,-500.0,9.863e-05,2]
[342483659,1731921036019,-500.0,9.863e-05,2]
[342483660,1731921036028,-500.0,9.863e-05,2]
[342483661,1731921036037,-510.97601205,9.863e-05,2]
[342483662,1731921036046,-312.4403435,9.863e-05,2]
[342483663,1731921036055,-500.0,9.863e-05,2]
[342483664,1731921036064,-500.0,9.863e-05,2]
[342483665,1731921036073,-500.0,9.863e-05,2]
[342483666,1731921036083,-500.0,9.863e-05,2]
[342483667,1731921036091,-500.0,9.863e-05,2]
[342483668,1731921036100,-512.35986694,9.863e-05,2]
[342483669,1731921036109,-500.0,9.863e-05,2]
[342483670,1731921036118,-500.0,9.863e-05,2]
[342483671,1731921036128,-500.0,9.863e-05,2]
[342483672,1731921036137,-540.00608541,9.863e-05,2]
[342483673,1731921036146,-502.31904286,9.863e-05,2]
[342483674,1731921036155,-500.0,9.863e-05,2]
[342483675,1731921036163,-539.45614395,9.863e-05,2]
[342483676,1731921036171,-500.73339922,9.863e-05,2]
[342483677,1731921036180,-539.19040236,9.863e-05,2]
[342483678,1731921036192,-518.56775444,9.863e-05,2]
[342483679,1731921036201,-500.0,9.863e-05,2]
[342483680,1731921036210,-500.0,9.863e-05,2]
[342483681,1731921036219,-500.19890382,9.863e-05,2]
[342483682,1731921036228,-634.64271974,9.863e-05,2]
[342483683,1731921036237,-196.49606926,9.863e-05,2]
[342483684,1731921036246,-500.0,9.863e-05,2]
[342483685,1731921036255,-160.76233534,9.863e-05,2]
[342483686,1731921036264,-500.0,9.863e-05,2]
[342483687,1731921036273,-500.0,9.863e-05,2]
[342483688,1731921036283,-500.22951278,9.863e-05,2]
[342483689,1731921036291,-500.0,9.863e-05,2]
[342483690,1731921036301,-500.0,9.863e-05,2]
[342483691,1731921036310,-500.0,9.863e-05,2]
[342483692,1731921036319,-500.0,9.863e-05,2]
[342483693,1731921036329,-500.0,9.863e-05,2]
[342483694,1731921036338,-500.0,9.863e-05,2]
[342483695,1731921036347,-500.0,9.863e-05,2]
[342483696,1731921036356,-500.0,9.863e-05,2]
[342483697,1731921036365,-500.0,9.863e-05,2]
[342483698,1731921036374,-500.0,9.863e-05,2]
[342483699,1731921036383,-500.0,9.863e-05,2]
[342483700,1731921036392,-500.0,9.863e-05,2]
[342483701,1731921036401,-500.0,9.863e-05,2]
[342483702,1731921036411,-500.0,9.863e-05,2]
[342483703,1731921036422,-500.0,9.863e-05,2]
[342483704,1731921036435,-500.0,9.863e-05,2]
[342483705,1731921036446,-500.0,9.863e-05,2]
[342483706,1731921036455,-500.0,9.863e-05,2]
[342483707,1731921036465,-500.0,9.863e-05,2]
[342483708,1731921036474,-500.0,9.863e-05,2]
[342483709,1731921036483,-500.0,9.863e-05,2]
[342483710,1731921036494,-500.0,9.863e-05,2]
[342483711,1731921036503,-500.0,9.863e-05,2]
[342483712,1731921036512,-500.0,9.863e-05,2]
[342483713,1731921036521,-500.0,9.863e-05,2]
[342483714,1731921036531,-500.0,9.863e-05,2]
[342483715,1731921036540,-500.0,9.863e-05,2]
[342483716,1731921036549,-500.0,9.863e-05,2]
[342483717,1731921036558,-500.0,9.863e-05,2]
[342483718,1731921036567,-500.0,9.863e-05,2]
[342483719,1731921036576,-500.0,9.863e-05,2]
[342483720,1731921036585,-500.0,9.863e-05,2]
[342483721,1731921036594,-500.0,9.863e-05,2]
[342483722,1731921036603,-500.0,9.863e-05,2]
[342483723,1731921036612,-51.4455061,9.863e-05,2]
[342483724,1731921036684,-448.5544939,9.863e-05,2]
[342483725,1731921036693,-500.0,9.863e-05,2]
[342483726,1731921036702,-284.2,9.863e-05,2]
[342483727,1731921036711,-500.0,9.863e-05,2]
[342483728,1731921036722,-96.64757253,9.863e-05,2]
[342483729,1731921036734,-83.27504963,9.863e-05,2]
[342483730,1731921036745,-500.0,9.863e-05,2]
[342483731,1731921036755,-64.40294537,9.863e-05,2]
[342483732,1731921036767,-435.59705463,9.863e-05,2]
[342483733,1731921036776,-500.0,9.863e-05,2]
[342483734,1731921036786,-500.0,9.863e-05,2]
[342483735,1731921036795,-500.0,9.863e-05,2]
[342483736,1731921036804,-31.57494537,9.863e-05,2]
[342483737,1731921036816,-468.42505463,9.863e-05,2]
[342483738,1731921036825,-500.0,9.863e-05,2]
[342483739,1731921036834,-500.0,9.863e-05,2]
[342483740,1731921036843,-500.0,9.863e-05,2]
[342483741,1731921036852,-500.0,9.863e-05,2]
[342483742,1731921036861,-500.0,9.863e-05,2]
[342483743,1731921036870,-500.0,9.863e-05,2]
[342483744,1731921036879,-500.0,9.863e-05,2]
[342483745,1731921036889,-466.42716355,9.863e-05,2]
[342483746,1731921036898,-500.0,9.863e-05,2]
[342483747,1731921036907,-500.0,9.863e-05,2]
[342483748,1731921036916,-500.0,9.863e-05,2]
[342483749,1731921036926,-500.0,9.863e-05,2]
[342483750,1731921036936,-500.0,9.863e-05,2]
[342483751,1731921036945,-500.0,9.863e-05,2]
[342483752,1731921036955,-500.0,9.863e-05,2]
[342483753,1731921036964,-500.0,9.863e-05,2]
[342483754,1731921036973,-500.0,9.863e-05,2]
[342483755,1731921036983,-500.0,9.863e-05,2]
[342483756,1731921036992,-515.66217051,9.863e-05,2]
[342483757,1731921037002,-509.6,9.863e-05,2]
[342483758,1731921037011,-509.6,9.863e-05,2]
[342483759,1731921037021,-509.6,9.863e-05,2]
[342483760,1731921037030,-320.9987516,9.863e-05,2]
[342483761,1731921037039,-500.0,9.863e-05,2]
[342483762,1731921037048,-500.0,9.863e-05,2]
[342483763,1731921037058,-500.0,9.863e-05,2]
[342483764,1731921037068,-500.0,9.863e-05,2]
[342483765,1731921037077,-500.0,9.863e-05,2]
[342483766,1731921037086,-500.0,9.863e-05,2]
[342483767,1731921037095,-500.0,9.863e-05,2]
[342483768,1731921037104,-500.0,9.863e-05,2]
[342483769,1731921037113,-500.0,9.863e-05,2]
[342483770,1731921037124,-542.55,9.863e-05,2]
[342483771,1731921037133,-542.55,9.863e-05,2]
[342483772,1731921037142,-568.08962981,9.863e-05,2]
[342483773,1731921037151,-542.55,9.863e-05,2]
[342483774,1731921037161,-500.0,9.863e-05,2]
[342483775,1731921037171,-500.0,9.863e-05,2]
[342483776,1731921037182,-500.0,9.863e-05,2]
[342483777,1731921037191,-500.0,9.863e-05,2]
[342483778,1731921037200,-500.0,9.863e-05,2]
[342483779,1731921037209,-500.0,9.863e-05,2]
[342483780,1731921037218,-500.0,9.863e-05,2]
[342483781,1731921037228,-500.0,9.863e-05,2]
[342483782,1731921037237,-500.0,9.863e-05,2]
[342483783,1731921037248,-500.0,9.863e-05,2]
[342483784,1731921037257,-500.0,9.863e-05,2]
[342483785,1731921037266,-500.0,9.863e-05,2]
[342483786,1731921037276,-627.86,9.863e-05,2]
[342483787,1731921037285,-627.86,9.863e-05,2]
[342483788,1731921037295,-627.86,9.863e-05,2]
[342483789,1731921037304,-500.0,9.863e-05,2]
[342483790,1731921037314,-500.0,9.863e-05,2]
[342483791,1731921037323,-500.0,9.863e-05,2]
[342483792,1731921037332,-500.0,9.863e-05,2]
[342483793,1731921037341,-500.0,9.863e-05,2]
[342483794,1731921037351,-500.0,9.863e-05,2]
[342483795,1731921037360,-500.0,9.863e-05,2]
[342483796,1731921037369,-500.0,9.863e-05,2]
[342483797,1731921037378,-500.0,9.863e-05,2]
[342483798,1731921037387,-500.0,9.863e-05,2]
[342483799,1731921037396,-500.0,9.863e-05,2]
[342483800,1731921037405,-500.0,9.863e-05,2]
[342483801,1731921037415,-500.0,9.863e-05,2]
[342483802,1731921037424,-168.56501851,9.863e-05,2]
[342483803,1731921037434,-337.64673568,9.863e-05,2]
[342483804,1731921037444,-500.0,9.863e-05,2]
[342483805,1731921037453,-500.0,9.863e-05,2]
[342483806,1731921037462,-500.0,9.863e-05,2]
[342483807,1731921037471,-500.42725892,9.863e-05,2]
[342483808,1731921037481,-500.0,9.863e-05,2]
[342483809,1731921037490,-500.0,9.863e-05,2]
[342483810,1731921037499,-500.0,9.863e-05,2]
[342483811,1731921037508,-500.0,9.863e-05,2]
[342483812,1731921037517,-500.0,9.863e-05,2]
[342483813,1731921037526,-500.0,9.863e-05,2]
[342483814,1731921037535,-500.0,9.863e-05,2]
[342483815,1731921037544,-500.0,9.863e-05,2]
[342483816,1731921037554,-500.0,9.863e-05,2]
[342483817,1731921037564,-260.25800446,9.863e-05,2]
[342483818,1731921037573,-503.86332785,9.863e-05,2]
[342483819,1731921037582,-500.0,9.863e-05,2]
[342483820,1731921037591,-500.0,9.863e-05,2]
[342483821,1731921037600,-500.0,9.863e-05,2]
[342483822,1731921037609,-500.0,9.863e-05,2]
[342483823,1731921037618,-500.0,9.863e-05,2]
[342483824,1731921037627,-334.36686711,9.863e-05,2]
[342483825,1731921037636,-500.0,9.863e-05,2]
[342483826,1731921037645,-387.41806294,9.863e-05,2]
[342483827,1731921037655,-500.0,9.863e-05,2]
[342483828,1731921037664,-500.0,9.863e-05,2]
[342483829,1731921037676,-500.0,9.863e-05,2]
[342483830,1731921037687,-500.0,9.863e-05,2]
[342483831,1731921037697,-500.0,9.863e-05,2]
[342483832,1731921037706,-500.0,9.863e-05,2]
[342483833,1731921037717,-500.0,9.863e-05,2]
[342483834,1731921037726,-403.21562488,9.863e-05,2]
[342483835,1731921037735,-500.0,9.863e-05,2]
[342483836,1731921037745,-500.0,9.863e-05,2]
[342483837,1731921037754,-500.0,9.863e-05,2]
[342483838,1731921037764,-542.89671091,9.863e-05,2]
[342483839,1731921037773,-500.0,9.863e-05,2]
[342483840,1731921037782,-500.0,9.863e-05,2]
[342483841,1731921037791,-500.0,9.863e-05,2]
[342483842,1731921037801,-500.0,9.863e-05,2]
[342483843,1731921037810,-500.0,9.863e-05,2]
[342483844,1731921037819,-500.0,9.863e-05,2]
[342483845,1731921037829,-504.47657027,9.863e-05,2]
[342483846,1731921037838,-500.0,9.863e-05,2]
[342483847,1731921037848,-500.0,9.863e-05,2]
[342483848,1731921037858,-500.0,9.863e-05,2]
[342483849,1731921037867,-551.23,9.863e-05,2]
[342483850,1731921037877,-500.0,9.863e-05,2]
[342483851,1731921037886,-551.23,9.863e-05,2]
[342483852,1731921037895,-500.0,9.863e-05,2]
[342483853,1731921037905,-551.23,9.863e-05,2]
[342483854,1731921037915,-513.34000049,9.863e-05,2]
[342483856,1731921037925,-500.0,9.863e-05,2]
[342483857,1731921037937,-500.0,9.863e-05,2]
[342483858,1731921037946,-500.0,9.863e-05,2]
[342483859,1731921037956,-500.0,9.863e-05,2]
[342483860,1731921037966,-500.0,9.863e-05,2]
[342483861,1731921037976,-500.0,9.863e-05,2]
[342483863,1731921037986,-500.0,9.863e-05,2]
[342483865,1731921037995,-500.0,9.863e-05,2]
[342483866,1731921038004,-500.0,9.863e-05,2]
[342483867,1731921038013,-500.0,9.863e-05,2]
[342483868,1731921038023,-500.0,9.863e-05,2]
[342483869,1731921038032,-500.0,9.863e-05,2]
[342483870,1731921038041,-500.0,9.863e-05,2]
[342483872,1731921038051,-500.0,9.863e-05,2]
[342483874,1731921038060,-500.0,9.863e-05,2]
[342483875,1731921038069,-500.0,9.863e-05,2]